Cogmind - Beta 17 @@@ ROGUE MODE // 2026.06.23 @ 21:54:45 Player: unq Result: Destroyed by Y-45 Defender with Beam Rifle Performance ------------- Evolutions (0) 0 Regions Visited (3) 600 Robots Destroyed (46) 230 Value Destroyed (1165) 1165 Prototype IDs (18) 360 Alien Tech Used (0) 0 Bonus (0) 0 TOTAL SCORE: 2355 Bonus ------- None Cogmind --------- Core Integrity 0/250 Matter 255/300 Energy 100/100 System Corruption 0% Temperature Cool (9) Movement Walking (130) Location -9/Recycling Parts ------- > --- POWER (1) -------- (None) > --- PROPULSION (2) --- Cargo Legs > --- UTILITY (2+2) ---- (None) > --- WEAPON (2) ------- Subdweller Machine Gun > --- INVENTORY (5) ---- Structural Scanner Subdweller Laser Subdweller Beam Cannon Subdweller Machine Gun Grenade Launcher Peak State ------------ > --- POWER ------------ Ion Engine > --- PROPULSION ------- Cargo Legs > --- UTILITY ---------- Large Storage Unit Hardened Light Armor Plating > --- WEAPON ----------- Subdweller Beam Cannon Subdweller Machine Gun > --- INVENTORY -------- Subdweller Power Source Subdweller Power Source Subdweller Monowheel Subdweller Monowheel Subdweller Monowheel Structural Scanner Subdweller Optics Seismic Detector Hardened Light Armor Plating Scrap Shield Subdweller Laser Subdweller Machine Gun Grenade Launcher [Rating: 26] Favorites ----------- Power Ion Engine Engine Ion Engine Propulsion Light Treads Treads Light Treads Leg Cargo Legs Wheel Subdweller Monowheel Utility Large Storage Unit Device Structural Scanner Storage Large Storage Unit Processor Transport Network Coupler Protection Hardened Light Armor Plating Weapon Subdweller Machine Gun Energy Gun Medium Laser Energy Cannon Beam Cannon Ballistic Gun Subdweller Machine Gun Special Weapon Mining Laser Build | -11 -10 -10 -9 ------- Run | Yrd Mat Sub Rec Slots Evolved . | . . . . Power . | . . . . Propulsion . | . . . . Utility . | . . . . Weapon . | . . . . Parts Attached 33 | 7 10 16 . Power 3 | 1 2 . . Engine 3 | 1 2 . . Core . | . . . . Reactor . | . . . . Propulsion 7 | 2 . 5 . Treads 3 | 2 . 1 . Leg 1 | . . 1 . Wheel 3 | . . 3 . Hover . | . . . . Flight . | . . . . Utility 10 | 2 3 5 . Device 3 | 1 . 2 . Storage 2 | 1 1 . . Processor 1 | . 1 . . Hackware . | . . . . Protection 4 | . 1 3 . Artifact . | . . . . Weapon 13 | 2 5 6 . Energy Gun 1 | 1 . . . Energy Cannon 6 | . 3 3 . Ballistic Gun 5 | 1 1 3 . Ballistic Cannon . | . . . . Launcher . | . . . . Special Weapon 1 | . 1 . . Impact Weapon . | . . . . Slashing Weapon . | . . . . Piercing Weapon . | . . . . Special Melee Weapon . | . . . . Unidentified Prototypes 1 | . . 1 . Parts Lost 4 | . . 1 3 Power 1 | . . . 1 Propulsion 1 | . . 1 . Utility 1 | . . . 1 Weapon 1 | . . . 1 Highest Loss Streak 3 | . . 1 3 To Critical Strikes . | . . . . Average Backups 13 | 3 13 13 13 Power 1 | . . 1 1 Propulsion 3 | 2 3 3 2 Utility 4 | . 5 5 4 Weapon 3 | . 3 3 4 Tool/Special . | . . . . Unused Backups 26 | . 12 8 6 Power 2 | . . . 2 Propulsion 12 | . 8 3 1 Utility 8 | . 3 4 1 Weapon 4 | . 1 1 2 Tool/Special . | . . . . Average Slot Usage (%) 90 | . 100 91 64 Engine 13 | . 14 13 10 Treads 19 | . 28 19 . Leg 2 | . . 2 11 Wheel 1 | . . 1 . Device 6 | . 4 8 . Storage 12 | . 14 13 10 Processor 1 | . 4 . . Protection 5 | . 4 5 10 Energy Cannon 11 | . 13 12 . Ballistic Gun 13 | . 13 12 22 Peak Build Rating 26 | 7 11 26 26 Average Rating 14 | 5 9 13 25 On Entrance 10 | . 7 9 26 Avg Prop Armor Cover (%) 12 | . . 12 . Naked Turns . | . . . . Heaviest Build 42 | 13 36 42 37 Greatest Support 55 | 40 40 55 55 Greatest Overweight (x) 2 | . . 2 . Average Overweight (x) . | . . . . Largest Inventory Capacity 15 | 8 15 15 15 Average Capacity 14 | 7 13 14 14 Most Carried 15 | 6 15 15 15 Average Carried 14 | 3 13 14 14 Final Capacity 15 | 8 15 15 5 Final Carried 15 | 6 15 15 5 Class Distribution -------------------- 94% | Mutant 5% | Scavenger-Mutant Dominant Class ---------------- Mutant | -10/Materials Mutant | -10/Subcaves Mutant | -9/Recycling Resources | -11 -10 -10 -9 ----------- Run | Yrd Mat Sub Rec Matter Collected 1225 | 224 340 661 . Remotely . | . . . . Salvage Created 1734 | 72 697 845 120 Parts 108 | 5 41 58 4 Haulers Intercepted 2 | . 2 . . Recyclers Shooed 2 | . 2 . . Parts Field Recycled . | . . . . Retrieved Matter . | . . . . Parts Self-Destructed 22 | . . 22 . Prevented . | . . . . Parts Restored . | . . . . Kills | -11 -10 -10 -9 ------- Run | Yrd Mat Sub Rec Combat Hostiles Destroyed 31 | . 9 21 1 Guns 8 | . 2 5 1 Cannons 22 | . 6 16 . Classes Destroyed 11 | 1 6 3 1 Tunneler 4 | 3 1 . . Hauler 2 | . 2 . . Recycler 4 | . 3 . 1 Operator 2 | . 2 . . Turret 2 | . . 2 . Watcher 1 | . 1 . . Swarmer 8 | . 3 5 . Grunt 7 | . 6 1 . Duelist 1 | . . . 1 Sentry 2 | . . 2 . Subdweller 13 | . . 13 . Best Kill Streak 5 | 2 5 5 1 Combat Bots Only 5 | . 4 5 1 Max Kills in Single Turn 2 | 1 2 1 1 Gunslinging . | . . . . Exploded . | . . . . Melee . | . . . . Uniques/NPCs Destroyed . | . . . . Combat | -11 -10 -10 -9 -------- Run | Yrd Mat Sub Rec Hostile Shots Fired 179 | . 28 112 39 Missed 55 | . 9 37 9 Hits 124 | . 19 75 30 Melee 3 | . . . 3 Projectile 121 | . 19 75 27 AOE 4 | . . 4 . Critical Strikes 1 | . . 1 . Damage Taken 1750 | . 242 1040 468 Core 253 | . 39 169 45 Absorbed by Shields . | . . . . Core Remaining (%) 100 | 100 . . . Volleys Fired 171 | 9 45 107 10 Largest 2 | 2 2 2 2 Hottest 110 | 70 100 110 53 Shots Fired 280 | 18 85 157 20 Gun 143 | 18 40 65 20 Cannon 113 | . 40 73 . Launcher . | . . . . Special 24 | . 5 19 . Kinetic 134 | 9 40 65 20 Thermal 123 | 9 22 92 . Explosive . | . . . . Electromagnetic 23 | . 23 . . Robot Hit Streak 27 | 6 7 27 4 Robot Miss Streak 4 | 2 3 4 3 Penetration Max . | . . . . Secondary Targets . | . . . . Shots Hit Robots 129 | 10 48 59 12 Core Hits 61 | 4 22 30 5 Critical Kills 2 | . 1 1 . Critical Parts Destroyed . | . . . . Critical Strikes 4 | 2 1 1 . Burn 2 | 2 . . . Destroy 2 | . 1 1 . Melee Attacks . | . . . . Impact . | . . . . Slashing . | . . . . Piercing . | . . . . Sneak Attacks . | . . . . Combat Hostiles . | . . . . Follow-up Attacks . | . . . . Damage Inflicted 2569 | 138 955 1252 224 Guns 1020 | 138 266 438 178 Cannons 1430 | . 616 814 . Explosions 31 | . 31 . . Melee . | . . . . Ramming 88 | . 42 . 46 Kinetic 959 | 77 266 438 178 Thermal 1097 | 61 222 814 . Explosive . | . . . . Electromagnetic 425 | . 425 . . Impact . | . . . . Slashing . | . . . . Piercing . | . . . . Highest Corruption . | . . . . Average Corruption . | . . . . Corruption Purged . | . . . . Corruption Blocked . | . . . . Overload Shots . | . . . . Overflow Damage . | . . . . Projectiles . | . . . . Explosions . | . . . . Melee . | . . . . Knockbacks 1 | . 1 . . Impact 1 | . 1 . . Kinetic . | . . . . Secondary . | . . . . Self-Inflicted Damage . | . . . . Shots . | . . . . Rammed 8 | 1 7 . . Targets Rammed 13 | 1 7 . 5 Kicked 5 | . . . 5 Crushed . | . . . . Highest Temperature 204 | 27 204 80 6 Average Temperature 37 | 10 53 16 4 Received Heat Transfer 429 | . 114 261 54 Siege Activations . | . . . . Martial Activations . | . . . . Shielding Activations . | . . . . Robots Disrupted . | . . . . Combat Hostiles . | . . . . Robots Corrupted 1 | . 1 . . Combat Hostiles 1 | . 1 . . Parts Fried 3 | . 3 . . Impact Corruptions . | . . . . Robots Melted . | . . . . Combat Hostiles . | . . . . Parts Melted 3 | 2 . 1 . Heat Transferred 1924 | 333 407 1184 . Parts Sabotaged . | . . . . Parts Stolen . | . . . . Parts Stripped . | . . . . Power Chain Reactions 1 | . 1 . . Alert | -11 -10 -10 -9 ------- Run | Yrd Mat Sub Rec Maximum Alert Level . | . . . . Low Security (%) 100 | 100 100 . 100 Level 1 . | . . . . Level 2 . | . . . . Level 3 . | . . . . Level 4 . | . . . . Level 5 . | . . . . High Security . | . . . . Max Security . | . . . . Peak Influence 145 | 10 135 . 145 Initial 145 | . . . 145 Average 36 | . 29 . 59 Influence Increases 1079 | 15 297 555 212 Destroy 0b10 Robot/C 400 | . 180 200 20 Destroy 0b10 Robot/NC 65 | 15 45 . 5 Destroy Leader 56 | . 46 10 . Successful Hack 25 | . 18 . 7 Select Force Hacks 180 | . . . 180 Destroy Structure 8 | . 8 . . Lose Combat Pursuer 345 | . . 345 . Influence Decreases 1079 | 15 297 252 515 Entered New Map 158 | . . . 158 Time Decay 791 | 15 297 252 227 Lost Part 20 | . . . 20 Purge Threat 110 | . . . 110 Squads Dispatched 2 | . 2 . . Investigation 1 | . 1 . . Extermination . | . . . . Reinforcement 1 | . 1 . . Assault . | . . . . Garrison . | . . . . Intercept . | . . . . Searches Triggered . | . . . . Construction Impeded . | . . . . Haulers Reinforced . | . . . . Active Scanning Responses . | . . . . Cargo Convoy Interrupts . | . . . . Stealth | -11 -10 -10 -9 --------- Run | Yrd Mat Sub Rec Distress Signals 2 | . 2 . . Communications Jammed . | . . . . Distress Signals . | . . . . Times Spotted 63 | . 16 44 3 Peak Tracking Total 9 | . 4 9 4 Tactical Retreats 8 | . . 8 . Traps | -11 -10 -10 -9 ------- Run | Yrd Mat Sub Rec Traps Triggered 2 | . 1 1 . Indirectly . | . . . . Trap Hack Attempts . | . . . . Triggered . | . . . . Disarmed . | . . . . Reprogrammed . | . . . . Reused . | . . . . Traps Extracted . | . . . . Installed . | . . . . Triggered . | . . . . Machines | -11 -10 -10 -9 ---------- Run | Yrd Mat Sub Rec Machines Disabled 2 | . . 2 . Max in Single Turn 1 | . . 1 . Machines Repaired . | . . . . Machines Dismantled . | . . . . Machines Sabotaged . | . . . . Overloaded Fab Kills . | . . . . Hacking | -11 -10 -10 -9 --------- Run | Yrd Mat Sub Rec Machines Accessed 14 | . 3 2 9 Terminals 6 | . 3 . 3 Fabricators . | . . . . Repair Stations . | . . . . Recycling Units 6 | . . . 6 Scanalyzers . | . . . . Garrison Access . | . . . . Total Hacks 36 | . 3 13 20 Successful 23 | . 2 13 8 Failed 13 | . 1 . 12 Catastrophic 2 | . 1 . 1 Database Lockouts . | . . . . Manual 19 | . 2 . 17 Terminals 13 | . 3 . 10 Fabricators . | . . . . Repair Stations . | . . . . Recycling Units 10 | . . . 10 Scanalyzers . | . . . . Garrison Access . | . . . . Terminal Hacks 17 | . 2 13 2 Record 12 | . . 12 . Part Schematic 1 | . . . 1 Prototype ID Bank 1 | . 1 . . Unreport Threat 1 | . . . 1 Locate Traps 1 | . 1 . . Proto ID Catalog 1 | . . 1 . Fabricator Hacks . | . . . . Repair Station Hacks . | . . . . Recycling Unit Hacks . | . . . . Scanalyzer . | . . . . Garrison Access Hacks . | . . . . Unauthorized Hacks 6 | . . . 6 Terminals . | . . . . Fabricators . | . . . . Repair Stations . | . . . . Recycling Units 6 | . . . 6 Tunnel 6 | . . . 6 Scanalyzers . | . . . . Garrison Access . | . . . . Data Cores Recovered 1 | . 1 . . Used . | . . . . Hacking Detections 5 | . 2 . 3 Full Trace Events . | . . . . Feedback Events . | . . . . Feedback Blocked . | . . . . Robot Schematics Acquired . | . . . . Robots Built . | . . . . Authchips . | . . . . Time . | . . . . Total Robot Build Rating . | . . . . Part Schematics Acquired 1 | . . . 1 Parts Built . | . . . . Authchips . | . . . . Time . | . . . . Total Part Build Rating . | . . . . Part Studies Acquired . | . . . . Parts Repaired . | . . . . Time . | . . . . Parts Recycled . | . . . . Recycled Matter . | . . . . Retrieved Matter . | . . . . Retrieved Components . | . . . . Parts Scanalyzed . | . . . . Part Schematics Acquired . | . . . . Parts Damaged . | . . . . Bothacking | -11 -10 -10 -9 ------------ Run | Yrd Mat Sub Rec Used RIF Installer . | . . . . Robots Hacked . | . . . . Non-combat . | . . . . Combat . | . . . . Robot Hacks Applied . | . . . . Relay Couplers Released . | . . . . Fabnet Peak Effective % . | . . . . Robots Rewired . | . . . . Allies Hacked . | . . . . Hacks Repelled . | . . . . Allies | -11 -10 -10 -9 -------- Run | Yrd Mat Sub Rec Total Allies . | . . . . Largest Group . | . . . . Highest-Rated Group . | . . . . Highest-Rated Ally . | . . . . Total Orders . | . . . . Ally Attacks . | . . . . Total Damage . | . . . . Kills . | . . . . Allies Corrupted . | . . . . Allies Melted . | . . . . Intel | -11 -10 -10 -9 ------- Run | Yrd Mat Sub Rec Active Infowar (turns) 3376 | 59 868 2449 . Structural 2033 | . . 2033 . Seismic 891 | 59 416 416 . T.N.C. 452 | . 452 . . Robot Analysis Total . | . . . . Derelict Logs Recovered 3 | . . 3 . Drone Launches . | . . . . Drone Recoveries . | . . . . Exploration | -11 -10 -10 -9 ------------- Run | Yrd Mat Sub Rec Turns Passed 6002 | 142 1262 3957 641 Spaces Moved 3347 | 62 653 2172 460 Core 1 | 1 . . . Treads 2013 | 61 653 1299 . Legs 1091 | . . 631 460 Wheels 242 | . . 242 . Hover . | . . . . Flight . | . . . . Fastest Speed 50 | 50 160 110 130 Average Speed 154 | 158 160 157 130 Slowest Speed 240 | 160 160 240 130 Overloaded Moves . | . . . . Propulsion Burnouts . | . . . . Robots Hopped . | . . . . Potential Cave-ins . | . . . . Cave-ins Triggered . | . . . . Exploration Rate (%) 67 | 4 85 95 84 Regions Visited 3 Branch Regions 2 Pre-discovered Areas 7 | . . 1 6 Known Exits Taken . | . . . . Unknown Exits Taken 3 | 1 1 1 . Scrap Searched 6 | . . 6 . Spaces Dug 15 | . 5 10 . Terrain Destroyed 22 | . 7 15 . Melee . | . . . . Projectile 20 | . 5 15 . AOE 2 | . 2 . . Terrain Rammed . | . . . . Walls Destroyed . | . . . . Machines Disabled . | . . . . Actions | -11 -10 -10 -9 --------- Run | Yrd Mat Sub Rec Total 3850 | 84 774 2510 482 Wait 142 | . 14 125 3 Move 3344 | 61 652 2171 460 Hop . | . . . . Pick Up 53 | 6 20 27 . Fast Attach 17 | 7 2 7 1 Attach 6 | . . 6 . Detach 6 | . 2 4 . Swap 53 | . 15 38 . Drop 45 | . 17 25 3 Fire 171 | 9 45 107 10 Melee . | . . . . Ram . | . . . . Kick 5 | . . . 5 Crush 8 | 1 7 . . Escape Stasis . | . . . . Rewire . | . . . . Trap . | . . . . Miscellaneous . | . . . . Route ------- -11/Scrapyard -10/Materials (discovered 4 exits: [*Mat x2] / [*Min] / *Sub) -10/Subcaves (discovered 3 exits: [*Mat x2] / *Rec) -9/Recycling History --------- Turn | Location | Event 9 | -11/Scrapyard | Discovered new exit (range 15) 143 | -11/Scrapyard | Entered Materials 312 | -10/Materials | Build established: Mutant 602 | -10/Materials | Discovered new exit (range 15) 810 | -10/Materials | Discovered new exit (range 7) 1026 | -10/Materials | Discovered new exit (range 16) 1168 | -10/Materials | Discovered new exit (range 9) 1405 | -10/Materials | Entered Subcaves 1742 | -10/Subcaves | Learned location of Recycling (-9) 1956 | -10/Subcaves | A swath of the cavern ceiling suddenly collapsed 2513 | -10/Subcaves | Discovered new exit (range 7) 2530 | -10/Subcaves | Discovered new exit (range 12) 3578 | -10/Subcaves | Ambushed by Subdweller buried in earth 3578 | -10/Subcaves | Ambushed by Subdweller buried in earth 3659 | -10/Subcaves | Learned Materials terminal intel 4152 | -10/Subcaves | Discovered new exit (range 16) 4178 | -10/Subcaves | Disturbed a concealed Subdweller 4254 | -10/Subcaves | Core integrity fell below 50% 4379 | -10/Subcaves | Build established: Scavenger-Mutant 4392 | -10/Subcaves | Visited 4L-MR0's lab 4405 | -10/Subcaves | Found Prototype Device 4405 | -10/Subcaves | Identified Sfc. Transmogrifier 4416 | -10/Subcaves | Found Cargo Legs 4418 | -10/Subcaves | Attached Cargo Legs, gained temporary slots: Utility x2 4659 | -10/Subcaves | Visited Clippyterm 4663 | -10/Subcaves | Learned Factory emergency access door positions 4709 | -10/Subcaves | Build established: Mutant 5241 | -10/Subcaves | Core integrity fell below 20% 5362 | -10/Subcaves | Entered Recycling 6003 | -9/Recycling | Destroyed by Y-45 Defender with Beam Rifle Last Messages --------------- 05953_ Acquired Scrap Shield. 05969_ Slug penetrates Wall. 05969_ Material Processor disabled. 05971_ R-06 Scavenger collects Sub. Monowheel. 05973_ R-06 Scavenger collects Hrd. Light Armor Plating. 05975_ R-06 Scavenger collects Sub. Power Source. 05976_ Penetrated by Slug. 05976_ R-06 Scavenger collects Seismic Detector. 05979_ Slug penetrates Material Processor. 05979_ R-06 Scavenger collects Sub. Optics. 05982_ R-06 Scavenger collects Sub. Monowheel. 05982_ L-31 Rogue destroyed. 05983_ Slug penetrates Wall. 05986_ Scrap Shield destroyed. 05992_ Slug penetrates Wall. 05995_ Slug penetrates Material Processor. 05998_ Penetrated by Slug. 05998_ Ion Engine destroyed. 06000_ Destroyed Assault Rifle. 06001_ Hvy. Assault Rifle destroyed. Map ----- +----------------------------------------------------+ | ####+##+##??# """ """ #??????????????????????? | | # ##?# """ """ #??????????????????????? | | # #?# """ """ #??????????????????????? | | + ##?# % #??????????????????????? | | # #??# """%""" #??????????????????????? | | # #??# """ """ #??????????????????????? | | + #??# """ """ #??????????????????????? | | # #??# #??????????????????????? | | # #??# """ #??????????????????????? | | ?# #??# "Y" """ #??????? ! ????????????? | | ?############# """ """ #???? # ?????????????? | | ?????????#"""## #??? / ??????????????? | | ???##???##"Y"#######+######## #????????????????? | | #### #### #????????????????? | | #????????????????? | | #????????????????? | | ###########+#########????????????????? | | ""#????# #????????????????????? | | ######### Y"#????# h =#????????????????????? | | ????????# ""#????# ! !#????????????????????? | | ????????# ###????# """ *#????????????????????? | | ????????# #??????# """ #????????????????????? | | ????????# ###????# """ Y #????????????????????? | | ??????### ""#????# """ #????????????????????? | | ####### # Y"#????# "" % #????????????????????? | | # ""#????# @ #????????????????????? | | # ###????##########????????????????????? | | # #????????????????????????????????????? | | # ###############??????????????????????? | | # # !!% % #??????????????????????? | | # # = % #??????????????????????? | | + + [ #??????????????????????? | | # #= ! ! !! %#??????????????????????? | | # ##############???????????????????????? | | ######### #????????????????????????????????????? | | #????????????????????????????????????? | | ##+###+#######???????????????????????????????? | | # #???????????????????????????????? | | + #???????????????????????????????? | | Y"### #???????????????????????????????? | | ""#?# """"" #???????????????????????????????? | | ###?# """"" #???????????????????????????????? | | ###?# """"" #???????????????????????????????? | | ! #?# #???????????????????????????????? | | #?# """"" #???????????????????????????????? | | ! #?# """"" #???????????????????????????????? | | #?# """"" #???????????????????????????????? | | ! #?# #???????????????????????????????? | | #?# #???????????????????????????????? | | #?##############???????????????????????????????? | +----------------------------------------------------+ Best States ------------- Heat Dissipation 25 Energy Generation 10 Energy Capacity 250 Matter Stores 300 Matter Capacity 300 Sight Range 16 Terrain Scan Density 10 Armor Coverage 800 Evasion (%) 55 Recoil Reduction 2 Item Schematics ----------------- Mic. Nuclear Core | -9/Recycling | Hacked Robot Schematics ------------------ None Fabricated ------------ Nothing Repaired ---------- Nothing Studied --------- None Alien Tech Used ----------------- None Achievements -------------- Do Not Disturb Challenges ------------ None Game ------ Seed SwarmScrapoidMegashotty Manual? 0 Play Time 00:52:42 Cumulative 374.2 hours Start 2026.06.23 @ 20:56:15 End 2026.06.23 @ 21:54:45 Sessions 1 Manual Loads 0 Difficulty Rogue Special Mode None Game No. 108 Rogue 108 Adventurer 0 Explorer 0 Win Type - Total 2 Types 2/0/0/0/0/0/0/0/0/0 Lore% 69 Gallery% 60 Achievement% 51 Wizard Run 0 Options --------- Layout 0 ASCII 1 Keyboard 1 Movement Arrows Keybinds 0 Fullscreen 1 Font 24/Smallcaps Map View 76x50 Zoom Use 0% Tactical HUD 1 Map Filters NONE Filters NONE Steam 1 RUN: 24eb429f-63fa-435b-beb1-b695bd9d871f